Body Name,Body,Service Level,Expense Type,Expense Code,Narrative,Date,Transaction Number,Amount,Capital and Revenue,Supplier Name,Supplier ID
South Ribble Council,http://statistics.data.gov.uk/doc/local-authority/30UN,Housing,Cap Grant- Improve Grants,C570,DFG WORKS TO BATHROOM AT ADDRESS REDACTED AS PER QUOTE SUPPLIED OF 4180.00 TOTAL COST 4180.00,17/04/2019,0000446447,"4,180.00",Revenue,ABBI PROPERTY SERVICES LTD,131357
South Ribble Council,http://statistics.data.gov.uk/doc/local-authority/30UN,Environmental Health,Other Misc,4851,"Planning for Real Training, for Green Links Consultation 	Planning for Real � Training (500)",03/04/2019,0000446097,660.20,Revenue,Accord Housing Association,132754
South Ribble Council,http://statistics.data.gov.uk/doc/local-authority/30UN,Property Services,Cleaning and Domestic Supplies,2712,Please undertake window cleaning at the Civic Centre on 16th & 17th March 2019. Contact NAME REDACTED,05/04/2019,0000446186,"1,700.00",Revenue,ACS SPECIALIST CLEANING LTD,00099752
South Ribble Council,http://statistics.data.gov.uk/doc/local-authority/30UN,Development Enterprise & Comm Mgnt,Other Misc,485A,500 Sinatra Matt Paragon Metal Ball pen printed one side plus origination and delivery. 250 light green and 250 purple. 325,17/04/2019,0000445621,325.00,Revenue,AD OPTIONS LTD,00101556
South Ribble Council,http://statistics.data.gov.uk/doc/local-authority/30UN,Housing,Cap Grant- Improve Grants,C570,"DFG WORKS TO BATHROOM AT ADDRESS REDACTED AS PER QUOTE SUPPLIED OF 5805.98 ",03/04/2019,0000446205,"5,805.98",Revenue,ADS Renovate,132791
South Ribble Council,http://statistics.data.gov.uk/doc/local-authority/30UN,Area 2 - Waste Transport/Eastern & Central Teams,Materials General,4040,1 propeller AE14 AYF JFC12099,17/04/2019,0000446207,"1,273.54",Revenue,AEBI SCHMIDT UK LTD,00085672
South Ribble Council,http://statistics.data.gov.uk/doc/local-authority/30UN,Area 2 - Waste Transport/Eastern & Central Teams,Materials General,4040,"WIPERS, AFRAME PIVOT, AFRAME BUSHES, SKID GUARDS, TRACKROD ENDS, DRIVE BELT, AE14AYF, JFC12177",17/04/2019,0000446478,442.58,Revenue,AEBI SCHMIDT UK LTD,00085672
South Ribble Council,http://statistics.data.gov.uk/doc/local-authority/30UN,Area 2 - Waste Transport/Eastern & Central Teams,Materials General,4040,FREIGHT,17/04/2019,0000446478,15.00,Revenue,AEBI SCHMIDT UK LTD,00085672
South Ribble Council,http://statistics.data.gov.uk/doc/local-authority/30UN,Revenues Plus,Professional Fees,4520,Council Tax Reduction Scheme 2019/20.,03/04/2019,0000446234,500.00,Revenue,AIREY CONSULTANCY LTD T/A ACS LTD,00089212
South Ribble Council,http://statistics.data.gov.uk/doc/local-authority/30UN,Healthy Communities,Professional Fees,4510,"30 Hours of Dance Coaching at Various @ 20 an Hour Total Price - 600",24/04/2019,0000446266,586.66,Revenue,Alexandra McKenna,132786
South Ribble Council,http://statistics.data.gov.uk/doc/local-authority/30UN,Development Enterprise & Comm Mgnt,Other Misc,4851,"15 Hours of Dance Coaching at @ 20 an Hour Total Price - 300",24/04/2019,0000446320,275.00,Revenue,Alexandra McKenna,132786
South Ribble Council,http://statistics.data.gov.uk/doc/local-authority/30UN,Revenues Plus,Financial,4811,post office,05/04/2019,0000446239,704.76,Revenue,ALLPAY LTD,00122276
South Ribble Council,http://statistics.data.gov.uk/doc/local-authority/30UN,Revenues Plus,Financial,4811,paypoint,05/04/2019,0000446239,84.74,Revenue,ALLPAY LTD,00122276
South Ribble Council,http://statistics.data.gov.uk/doc/local-authority/30UN,Revenues Plus,Financial,4811,webconn,05/04/2019,0000446239,47.72,Revenue,ALLPAY LTD,00122276
South Ribble Council,http://statistics.data.gov.uk/doc/local-authority/30UN,Property Services,Rep & Maint Premises,2020,2019 / 2020 annual metering charge for the civic centre,17/04/2019,0000446402,432.00,Revenue,AMEY Metering Ltd,131991
South Ribble Council,http://statistics.data.gov.uk/doc/local-authority/30UN,HR & Communications,Professional Fees,4513,EMPLOYMENT ADVICE - NAME REDACTED,12/04/2019,0000446278,300.00,Revenue,ANALYSIS LEGAL,132807
South Ribble Council,http://statistics.data.gov.uk/doc/local-authority/30UN,Housing,Cap Grant- Improve Grants,C570,"DFG WORKS TO BATHROOM AT ADDRESS REDACTED  AS PER QUOTE SUPPLIED OF 3875.00 COST 3875.00",03/04/2019,0000446064,"3,875.00",Revenue,APG DOMESTIC SERVICES,00061463
South Ribble Council,http://statistics.data.gov.uk/doc/local-authority/30UN,Housing,Cap Grant- Improve Grants,C570,"DFG WORKS TO BATHROOM AND RAMP AT ADDRESS REDACTED AS PER YOUR QUOTE OF 13036 COST 13036",03/04/2019,0000446174,"13,036.00",Revenue,APG DOMESTIC SERVICES,00061463
South Ribble Council,http://statistics.data.gov.uk/doc/local-authority/30UN,Housing,Cap Grant- Improve Grants,C570,"DFG WORKS TO BATHROOM AT ADDRESS REDACTED AS PER QUOTE SUPPLIED OF 4420.00 COST 4420.00",03/04/2019,0000446175,"4,420.00",Revenue,APG DOMESTIC SERVICES,00061463
South Ribble Council,http://statistics.data.gov.uk/doc/local-authority/30UN,Neighbourhood Admin & Support,Clothing- Uniforms & Laundry,4410,Flame Retardant Coverall - PORTWEST BIZ 7  - Large with SRBC Logo - B167800,17/04/2019,0000446461,414.81,Revenue,ARCO,00014096
South Ribble Council,http://statistics.data.gov.uk/doc/local-authority/30UN,Regeneration,Capital Expenditure,C230,"PAGABO LOT1 Professional services contract - Leyland Campus program (18/19 fee payments) Contract value 1,800,000",05/04/2019,0000446298,"45,000.00",Revenue,Atkins Limited Shared Service Facility,132625
South Ribble Council,http://statistics.data.gov.uk/doc/local-authority/30UN,Regeneration,Advertising,4842,"Green Links A4 Leaflets Size:297 X 210mm, 2 Pages, 4 colour both sides, 170gsm QUAN:50,000 = 1225.00 Printing plates",26/04/2019,0000445258,"1,225.00",Revenue,B & D PRINT SERVICES LTD,00015134
South Ribble Council,http://statistics.data.gov.uk/doc/local-authority/30UN,Healthy Communities,Professional Fees,4510,L3 Award in Education and Training 350 per Candidate x 3,03/04/2019,0000446159,"1,050.00",Revenue,BallZone Education C.I.C,132694
South Ribble Council,http://statistics.data.gov.uk/doc/local-authority/30UN,Area 3 - Parks/Leyland East West,Operational Furniture & Equip,4010,One Camon LS42 Swinging Blade Scarifier & interchangeable fixed blade cartridge and debris collection  bag,24/04/2019,0000446548,"1,095.00",Revenue,BALMERS GM LTD,00016023
South Ribble Council,http://statistics.data.gov.uk/doc/local-authority/30UN,Housing,Cap Expend Other,C750,"DFG WORKS TO BATHROOM AT ADDRESS REDACTED PER QUOTE SUPPLIED OF 3365.00 COST 3365.00",03/04/2019,0000446065,"3,300.00",Revenue,Bambers Remedial Contractors Ltd,132736
South Ribble Council,http://statistics.data.gov.uk/doc/local-authority/30UN,Shared Financial Services,Peripherals,4248,,24/04/2019,0000446547,15.00,Revenue,Barclaycard Merchant Services,132157
South Ribble Council,http://statistics.data.gov.uk/doc/local-authority/30UN,Shared Financial Services,Peripherals,4248,,24/04/2019,0000446547,542.00,Revenue,Barclaycard Merchant Services,132157
South Ribble Council,http://statistics.data.gov.uk/doc/local-authority/30UN,Regeneration,Capital Expenditure,C230,Manufacture and supply of bespoke cycle barrier,03/04/2019,0000446008,"1,329.00",Revenue,Barricade Ltd,132631
South Ribble Council,http://statistics.data.gov.uk/doc/local-authority/30UN,Planning,Consultancy Fees,4541,Employment Review,03/04/2019,0000446126,"4,000.00",Revenue,BE LTD,130661
South Ribble Council,http://statistics.data.gov.uk/doc/local-authority/30UN,Housing,Cap Grant- Improve Grants,C570,DFG WORKS TO BATHROOM AT ADDRESS REDACTED PER QUOTE OF 3289.70 50% Tennant 50% DFG GRANT,24/04/2019,0000446625,"1,644.85",Revenue,BELL DECORATING GROUP LIMITED,132683
South Ribble Council,http://statistics.data.gov.uk/doc/local-authority/30UN,Development Enterprise & Comm Mgnt,Advertising,4842,"Christmas Lights Installations in Leyland Christmas 2018, maintenance and storage",17/04/2019,0000446286,"5,500.00",Revenue,Blackpool Council,131663
South Ribble Council,http://statistics.data.gov.uk/doc/local-authority/30UN,Regeneration,Advertising,4842,"Display boards for Green Links Consultations A0 Foamex 5mm, extra 2hrs artwork & i stock Photos & delivery",26/04/2019,0000445305,495.00,Revenue,Brightprint Ltd,132764
South Ribble Council,http://statistics.data.gov.uk/doc/local-authority/30UN,Community Safety,Peripherals,4261,NAME REDACTED,10/04/2019,0000446284,38.00,Revenue,BRITISH TELECOMMUNICATIONS PLC,00015451
South Ribble Council,http://statistics.data.gov.uk/doc/local-authority/30UN,Community Safety,Peripherals,4261,NAME REDACTED,10/04/2019,0000446284,38.00,Revenue,BRITISH TELECOMMUNICATIONS PLC,00015451
South Ribble Council,http://statistics.data.gov.uk/doc/local-authority/30UN,Community Safety,Peripherals,4261,NAME REDACTED,10/04/2019,0000446284,38.00,Revenue,BRITISH TELECOMMUNICATIONS PLC,00015451
South Ribble Council,http://statistics.data.gov.uk/doc/local-authority/30UN,Community Safety,Peripherals,4261,NAME REDACTED,10/04/2019,0000446284,38.00,Revenue,BRITISH TELECOMMUNICATIONS PLC,00015451
South Ribble Council,http://statistics.data.gov.uk/doc/local-authority/30UN,Community Safety,Peripherals,4261,NAME REDACTED,10/04/2019,0000446284,24.00,Revenue,BRITISH TELECOMMUNICATIONS PLC,00015451
South Ribble Council,http://statistics.data.gov.uk/doc/local-authority/30UN,Community Safety,Peripherals,4261,NAME REDACTED,10/04/2019,0000446284,24.00,Revenue,BRITISH TELECOMMUNICATIONS PLC,00015451
South Ribble Council,http://statistics.data.gov.uk/doc/local-authority/30UN,Community Safety,Peripherals,4261,NAME REDACTED,10/04/2019,0000446284,24.00,Revenue,BRITISH TELECOMMUNICATIONS PLC,00015451
South Ribble Council,http://statistics.data.gov.uk/doc/local-authority/30UN,Community Safety,Peripherals,4261,NAME REDACTED,10/04/2019,0000446284,86.14,Revenue,BRITISH TELECOMMUNICATIONS PLC,00015451
South Ribble Council,http://statistics.data.gov.uk/doc/local-authority/30UN,Regeneration,Capital Expenditure,C230,Filling of 4 planters and purchasing of plants for 8 planters at Bamber Bridge Railway Station,03/04/2019,0000444722,590.08,Revenue,BROTHERS OF CHARITY SERVICES,00086956
South Ribble Council,http://statistics.data.gov.uk/doc/local-authority/30UN,Revenues Plus,Professional Fees,4520,Subsidy webinar,03/04/2019,0000446135,300.00,Revenue,CAPITA BUSINESS SERVICES LTD,00122179
South Ribble Council,http://statistics.data.gov.uk/doc/local-authority/30UN,Information Services,Peripherals,4248,Remote Access Maintenance for period 01/04/19 - 31/03/20,05/04/2019,0000446240,"2,125.84",Revenue,CAPITA BUSINESS SERVICES LTD,00122179
South Ribble Council,http://statistics.data.gov.uk/doc/local-authority/30UN,Information Services,Peripherals,4248,"Revenues and Benefits Maintenance renewal for period 01/04/19 - 31/03/20, as per quote",05/04/2019,0000446241,"55,683.99",Revenue,CAPITA BUSINESS SERVICES LTD,00122179
South Ribble Council,http://statistics.data.gov.uk/doc/local-authority/30UN,Information Services,Peripherals,4248,Capita Revenues & Benefits Development Fund for period 01/04/19 - 31/03/20,05/04/2019,0000446261,"9,193.00",Revenue,CAPITA BUSINESS SERVICES LTD,00122179
South Ribble Council,http://statistics.data.gov.uk/doc/local-authority/30UN,Environmental Health,Licence Fees,488B,apr19-jun19,24/04/2019,0000446356,"1,125.00",Revenue,Carr Street Community Centre,130312
South Ribble Council,http://statistics.data.gov.uk/doc/local-authority/30UN,Environmental Health,Training Expense-Course Fees,1400,2hr Evac Chair Training on 12th March (to be confirmed) - per NAME REDACTED,24/04/2019,0000446562,325.00,Revenue,Centaur Training Services (North West) Ltd,132060
South Ribble Council,http://statistics.data.gov.uk/doc/local-authority/30UN,HR & Communications,Other Misc,4851,HR-INFORM SUBSCRIPTION  6 APRIL 2019 - 5 APRIL 2020.  INFORMATION AND RESOURCES FOR HR -  POLICY HR1615,17/04/2019,0000446457,608.00,Revenue,CHARTERED INST OF PERSONNEL & DEVELOPMEN,00024947
South Ribble Council,http://statistics.data.gov.uk/doc/local-authority/30UN,Revenues Plus,Agency Fees,1121,Recharge for NAME REDACTED in Benefits 2018-19,03/04/2019,0000446117,"20,726.73",Revenue,CHORLEY BOROUGH COUNCIL,00017352
South Ribble Council,http://statistics.data.gov.uk/doc/local-authority/30UN,Shared Financial Services,External Contractors Charges,4570,Provision of Shared Financial Services 2018/19,03/04/2019,0000446140,"170,000.00",Revenue,CHORLEY BOROUGH COUNCIL,00017352
South Ribble Council,http://statistics.data.gov.uk/doc/local-authority/30UN,Shared Financial Services,Other Misc,4851,,26/04/2019,0000446615,"83,333.00",Revenue,CHORLEY BOROUGH COUNCIL,00017352
South Ribble Council,http://statistics.data.gov.uk/doc/local-authority/30UN,Property Services,Rep & Maint Premises,2020,"Annual contract for the maintenance of the intruder alarm at the Museum, Church Road, Leyland - contract number 1076775",17/04/2019,0000446458,840.02,Revenue,CHUBB LTD,00090625
South Ribble Council,http://statistics.data.gov.uk/doc/local-authority/30UN,Property Services,Rep & Maint Fixed Plant,2035,2019 / 2020 annual fee for the monitoring & maintenance of the CCTV system at the Civic Centre ref 1543140,17/04/2019,0000446471,"2,896.00",Revenue,CHUBB LTD,00090625
South Ribble Council,http://statistics.data.gov.uk/doc/local-authority/30UN,Property Services,Rep & Maint Fixed Plant,2035,Annual contract 2019 / 2020 for the maintenance of the intruder alarms at Worden Arts Centre - contract number 1076780,17/04/2019,0000446472,972.26,Revenue,CHUBB LTD,00090625
South Ribble Council,http://statistics.data.gov.uk/doc/local-authority/30UN,Area 2 - Waste Transport/Eastern & Central Teams,Materials General,4040,1 ADBLU PUMP PJ62 UCH JFC12254,24/04/2019,0000446538,838.87,Revenue,CICELEY COMMERCIALS LTD,00059381
South Ribble Council,http://statistics.data.gov.uk/doc/local-authority/30UN,Shared Assurance Services,Training Expense-Course Fees,1402,Good Governance in Local Government 2019 Professional Update NAME REDACTED 27th February 2019 Birmingham,03/04/2019,0000445873,345.00,Revenue,CIPFA BUSINESS LTD,00017187
South Ribble Council,http://statistics.data.gov.uk/doc/local-authority/30UN,Shared Financial Services,Publications,4140,CIPFA Publications Subscription 01 Apr 2019 - 31 March 2020,05/04/2019,0000446242,"2,767.50",Revenue,CIPFA BUSINESS LTD,00017187
South Ribble Council,http://statistics.data.gov.uk/doc/local-authority/30UN,Neighbourhood Admin & Support,Operational Furniture & Equip,4019,Repairs and sending of 21 benches in Worden Park formal gardens @ 110.00 per bench,24/04/2019,0000446626,880.00,Revenue,CJB Groundcare,132699
South Ribble Council,http://statistics.data.gov.uk/doc/local-authority/30UN,Housing,Cap Grant- Improve Grants,C570,DFG WORKS FOR EXTENSION FOR BEDROOM AND BATHROOM FOR ADDRESS REDACTED COST 24742.00,12/04/2019,0000446406,"4,740.00",Revenue,Cornerstone Building & Maintenance Ltd,131383
South Ribble Council,http://statistics.data.gov.uk/doc/local-authority/30UN,Housing,Cap Grant- Improve Grants,C570,"WORKS - EXTENSION OF BEDROOM AND BATHROOM ATADDRESS REDACTED   33877.00 30000 GRANT CUST 3877",12/04/2019,0000446407,"11,700.00",Revenue,Cornerstone Building & Maintenance Ltd,131383
South Ribble Council,http://statistics.data.gov.uk/doc/local-authority/30UN,Information Services,Peripherals,4248,"25 x agent AG-1 Monaural NC Headset - PLX QD @ 62.00 each, plus delivery & packaging, as per quote",26/04/2019,0000446637,"1,558.95",Revenue,Corporate Direct (Europe) Ltd. t/as Corporate Tele,132297
South Ribble Council,http://statistics.data.gov.uk/doc/local-authority/30UN,Healthy Communities,Operational Furniture & Equip,4010,NAME REDACTED Children�s Yoga and Mindfulness Teacher training 22nd -24th March,03/04/2019,0000446015,550.00,Revenue,Creative Calm Training Ltd,132163
South Ribble Council,http://statistics.data.gov.uk/doc/local-authority/30UN,Revenues Plus,Postage,4291,Postage for Jan - March 2019,03/04/2019,0000446142,503.37,Revenue,CRITIQOM,131053
South Ribble Council,http://statistics.data.gov.uk/doc/local-authority/30UN,Revenues Plus,Postage,4291,Postage for Jan - March 2019,12/04/2019,0000446420,575.17,Revenue,CRITIQOM,131053
South Ribble Council,http://statistics.data.gov.uk/doc/local-authority/30UN,Revenues Plus,Postage,4291,Postage April - June 2019,17/04/2019,0000446434,530.13,Revenue,CRITIQOM,131053
South Ribble Council,http://statistics.data.gov.uk/doc/local-authority/30UN,Revenues Plus,Postage,4291,Postage April - June 2019,26/04/2019,0000446585,459.39,Revenue,CRITIQOM,131053
South Ribble Council,http://statistics.data.gov.uk/doc/local-authority/30UN,Housing,Cap Grant- Improve Grants,C570,DFG WORK TO BATHROOM ATADDRESS REDACTED AS PER QUOTE SUPPLIED OF 4500.00 TOTAL GRANT 4500.00,26/04/2019,0000446671,"4,500.00",Revenue,Croston Plumbing & Heating Ltd,131545
South Ribble Council,http://statistics.data.gov.uk/doc/local-authority/30UN,Development Enterprise & Comm Mgnt,Professional Fees,4510,National Standard Training & Assessment for 6 trainees.,03/04/2019,0000446003,900.00,Revenue,Cycling Instructor Ltd,132778
South Ribble Council,http://statistics.data.gov.uk/doc/local-authority/30UN,Development Enterprise & Comm Mgnt,Professional Fees,4510,Bikeability training 12th March-Howick Primary Sch 20th& 21st March-Woodlea Primary Sch,24/04/2019,0000446322,270.00,Revenue,David Evans,132686
South Ribble Council,http://statistics.data.gov.uk/doc/local-authority/30UN,Area 3 - Parks/Leyland East West,Grounds Maint Cntrctrs Chgs,4657,"Emergency wet pour repair ADDRESS REDACTED 2.5m x 0.25m",10/04/2019,0000446310,600.00,Revenue,DCM Projects Ltd,132610
South Ribble Council,http://statistics.data.gov.uk/doc/local-authority/30UN,Area 3 - Parks/Leyland East West,Grounds Maint Cntrctrs Chgs,4657,Birch Avenue - Mobilus 6m x 0.25m,10/04/2019,0000446311,845.00,Revenue,DCM Projects Ltd,132610
South Ribble Council,http://statistics.data.gov.uk/doc/local-authority/30UN,Regeneration,Peripherals,4242,"Citizens space 12 Month subscription  7995 Consultancy Day 26th February 900",12/04/2019,0000445259,"8,895.00",Revenue,Delib Ltd,132765
South Ribble Council,http://statistics.data.gov.uk/doc/local-authority/30UN,Area 2 - Waste Transport/Eastern & Central Teams,External Contractors Charges,4570,1 SPEC REPAIR VO65 KRD JFC12233,24/04/2019,0000446260,273.62,Revenue,DENNIS EAGLE LTD,00019774
South Ribble Council,http://statistics.data.gov.uk/doc/local-authority/30UN,HR & Communications,Professional Fees,4522,"DBS Checks August 2018 onwards",17/04/2019,0000446309,352.00,Revenue,DISCLOSURE & BARRING SERVICE (CRB),00061984
South Ribble Council,http://statistics.data.gov.uk/doc/local-authority/30UN,Development Enterprise & Comm Mgnt,Rep & Maint Premises,2020,"Annual Contract for the maintenance of the Lift   2018/2019 at Civic Centre, West Paddock, Leyland",24/04/2019,0000446575,447.50,Revenue,E A Foulds Limited,131427
South Ribble Council,http://statistics.data.gov.uk/doc/local-authority/30UN,Information Services,Peripherals,4260,,10/04/2019,0000446347,"2,461.96",Revenue,EE Ltd,131653
South Ribble Council,http://statistics.data.gov.uk/doc/local-authority/30UN,Property Services,Rep & Maint Premises,2020,Attend Civic Centre Gateway and supply high level blinds in grey as per NAME REDACTED contact NUMBER REDACTED,17/04/2019,0000446469,690.00,Revenue,EMPORIUM BLINDS UK,131036
South Ribble Council,http://statistics.data.gov.uk/doc/local-authority/30UN,Development Enterprise & Comm Mgnt,Other Misc,4851,"Development of Dance training VideoTotal Cost 250",24/04/2019,0000446335,250.00,Revenue,Everyonemedia Ltd,131539
South Ribble Council,http://statistics.data.gov.uk/doc/local-authority/30UN,Revenues Plus,Professional Fees,4520,Annual Fee 2019/20,17/04/2019,0000446462,"1,606.00",Revenue,EXPERIAN LTD,00094045
South Ribble Council,http://statistics.data.gov.uk/doc/local-authority/30UN,Area 2 - Waste Transport/Eastern & Central Teams,External Contractors Charges,4570,RESIDUAL WASTE COLLECTIONS MARCH 2019,10/04/2019,0000446280,"42,482.57",Revenue,FCC Environment Services (UK) Ltd,131612
South Ribble Council,http://statistics.data.gov.uk/doc/local-authority/30UN,Area 2 - Waste Transport/Eastern & Central Teams,External Contractors Charges,4570,DRY RECYCLING  NON TERRACED MARCH 2019,10/04/2019,0000446280,"43,506.64",Revenue,FCC Environment Services (UK) Ltd,131612
South Ribble Council,http://statistics.data.gov.uk/doc/local-authority/30UN,Area 2 - Waste Transport/Eastern & Central Teams,External Contractors Charges,4570,DRY RECYCLABLE TERRACED MARCH 2019,10/04/2019,0000446280,"2,066.66",Revenue,FCC Environment Services (UK) Ltd,131612
South Ribble Council,http://statistics.data.gov.uk/doc/local-authority/30UN,Area 2 - Waste Transport/Eastern & Central Teams,External Contractors Charges,4570,ORGANIC WASTE COLLECTIONS MARCH 2019,10/04/2019,0000446280,"30,151.91",Revenue,FCC Environment Services (UK) Ltd,131612
South Ribble Council,http://statistics.data.gov.uk/doc/local-authority/30UN,Area 2 - Waste Transport/Eastern & Central Teams,External Contractors Charges,4570,SCHEDULE 2 PROPERTIES MARCH 2019,10/04/2019,0000446280,"1,725.43",Revenue,FCC Environment Services (UK) Ltd,131612
South Ribble Council,http://statistics.data.gov.uk/doc/local-authority/30UN,Area 2 - Waste Transport/Eastern & Central Teams,External Contractors Charges,4570,COMMERCIAL WASTE MARCH 2019,10/04/2019,0000446280,"6,761.80",Revenue,FCC Environment Services (UK) Ltd,131612
South Ribble Council,http://statistics.data.gov.uk/doc/local-authority/30UN,Area 2 - Waste Transport/Eastern & Central Teams,External Contractors Charges,4570,BULKY WASTE COLLECTIONS MARCH 2019,10/04/2019,0000446280,934.56,Revenue,FCC Environment Services (UK) Ltd,131612
South Ribble Council,http://statistics.data.gov.uk/doc/local-authority/30UN,Area 2 - Waste Transport/Eastern & Central Teams,External Contractors Charges,4570,WEEE COLLECTIONS MARCH 2019,10/04/2019,0000446280,349.34,Revenue,FCC Environment Services (UK) Ltd,131612
South Ribble Council,http://statistics.data.gov.uk/doc/local-authority/30UN,Area 2 - Waste Transport/Eastern & Central Teams,External Contractors Charges,4570,CLINICAL WASTE COLLECTIONS MARCH 2019,10/04/2019,0000446280,594.92,Revenue,FCC Environment Services (UK) Ltd,131612
South Ribble Council,http://statistics.data.gov.uk/doc/local-authority/30UN,Area 2 - Waste Transport/Eastern & Central Teams,External Contractors Charges,4570,REPLACEMENT BINS MARCH 2019,10/04/2019,0000446280,"5,000.00",Revenue,FCC Environment Services (UK) Ltd,131612
South Ribble Council,http://statistics.data.gov.uk/doc/local-authority/30UN,Area 2 - Waste Transport/Eastern & Central Teams,External Contractors Charges,4570,ADDITIONAL PROPERTIES MARCH 2019,10/04/2019,0000446280,"1,880.44",Revenue,FCC Environment Services (UK) Ltd,131612
South Ribble Council,http://statistics.data.gov.uk/doc/local-authority/30UN,Area 2 - Waste Transport/Eastern & Central Teams,Balance Sheet,0030,retention,10/04/2019,0000446280,"-2,736.45",Revenue,FCC Environment Services (UK) Ltd,131612
South Ribble Council,http://statistics.data.gov.uk/doc/local-authority/30UN,Area 2 - Waste Transport/Eastern & Central Teams,Balance Sheet,0030,retention,10/04/2019,0000446280,"-3,786.26",Revenue,FCC Environment Services (UK) Ltd,131612
South Ribble Council,http://statistics.data.gov.uk/doc/local-authority/30UN,Area 2 - Waste Transport/Eastern & Central Teams,External Contractors Charges,4570,Additional Bulky waste Collections February 2019,17/04/2019,0000446484,516.06,Revenue,FCC Environment Services (UK) Ltd,131612
South Ribble Council,http://statistics.data.gov.uk/doc/local-authority/30UN,Area 2 - Waste Transport/Eastern & Central Teams,External Contractors Charges,4570,Additional WEEE Collections February 2019,17/04/2019,0000446484,324.31,Revenue,FCC Environment Services (UK) Ltd,131612
South Ribble Council,http://statistics.data.gov.uk/doc/local-authority/30UN,Area 2 - Waste Transport/Eastern & Central Teams,Balance Sheet,0030,retention,17/04/2019,0000446484,-42.02,Revenue,FCC Environment Services (UK) Ltd,131612
South Ribble Council,http://statistics.data.gov.uk/doc/local-authority/30UN,Area 2 - Waste Transport/Eastern & Central Teams,External Contractors Charges,4570,Additional Bulky Waste Collection MARCH 2019 - YE estimate,17/04/2019,0000446494,668.34,Revenue,FCC Environment Services (UK) Ltd,131612
South Ribble Council,http://statistics.data.gov.uk/doc/local-authority/30UN,Area 2 - Waste Transport/Eastern & Central Teams,External Contractors Charges,4570,Additional WEEE collections MARCH 2019 - YE Estimate,17/04/2019,0000446494,205.66,Revenue,FCC Environment Services (UK) Ltd,131612
South Ribble Council,http://statistics.data.gov.uk/doc/local-authority/30UN,Area 2 - Waste Transport/Eastern & Central Teams,Balance Sheet,0030,retention fee,17/04/2019,0000446494,-43.70,Revenue,FCC Environment Services (UK) Ltd,131612
South Ribble Council,http://statistics.data.gov.uk/doc/local-authority/30UN,Development Enterprise & Comm Mgnt,Advertising,4842,"Nike Academy - Training Top x17, Drill To x14, Shortsx7, Knit Pantsx8, Polox8, Rain Jacketx1, Hoodyx2Total Cost - 1395.78",03/04/2019,0000446118,"1,163.15",Revenue,Galaxy,132430
South Ribble Council,http://statistics.data.gov.uk/doc/local-authority/30UN,Housing,Capital Expenditure,C230, AIR QUALITY ASSESSMENT AND REPORT ENSURING IT MEETS THE AGREED REQUIREMENTS - QUOTE-1450.00+VAT,05/04/2019,0000445530,"1,450.00",Revenue,GEM Air Quality Ltd,132774
South Ribble Council,http://statistics.data.gov.uk/doc/local-authority/30UN,Property Services,Rep & Maint Premises,2020,Please undertake an inspection/survey of the dampers at the Civic Centre. Contact caretakers for access NUMBER REDACTED,05/04/2019,0000446225,750.00,Revenue,Gilberts,132761
South Ribble Council,http://statistics.data.gov.uk/doc/local-authority/30UN,Area 1 - Penwortham Western Parishes,Materials General,4040,1 X Stanford Seat,05/04/2019,0000446166,829.56,Revenue,GLASDON UK LTD,130953
South Ribble Council,http://statistics.data.gov.uk/doc/local-authority/30UN,Housing,Cap Expend Other,C750,"DFG WORKS TO BATHROOM AT ADDRESS REDACTED AS PER QUOTE SUPPLIED OF 5167.00 GRANT  5167.00",26/04/2019,0000446656,"5,167.00",Revenue,GOS Heating Ltd,131387
South Ribble Council,http://statistics.data.gov.uk/doc/local-authority/30UN,Area 3 - Parks/Leyland East West,Grounds Maint Cntrctrs Chgs,4657,1x Hag8057171 Moonbuggy Roll Cage & Fixings 1248.80 with delivery - less 10%,24/04/2019,0000446518,"1,123.92",Revenue,HAGS SMP LTD,130596
South Ribble Council,http://statistics.data.gov.uk/doc/local-authority/30UN,Neighbourhood Admin & Support,Vehicle Running Costs,3132,15000l Diesel @ 101.86 pence per litre,12/04/2019,0000446392,"15,272.04",Revenue,Hall Fuels trading name of WFL (UK) Ltd,00116758
South Ribble Council,http://statistics.data.gov.uk/doc/local-authority/30UN,Neighbourhood Admin & Support,Vehicle Running Costs,3134,3500l Gas Oil @ 56.73,17/04/2019,0000446480,"1,986.68",Revenue,Hall Fuels trading name of WFL (UK) Ltd,00116758
South Ribble Council,http://statistics.data.gov.uk/doc/local-authority/30UN,Neighbourhood Admin & Support,Vehicle Running Costs,3132,17500l Diesel @ 102.44,17/04/2019,0000446488,"13,855.37",Revenue,Hall Fuels trading name of WFL (UK) Ltd,00116758
South Ribble Council,http://statistics.data.gov.uk/doc/local-authority/30UN,Development Enterprise & Comm Mgnt,Sports Dev Expenses,4894,South Ribble Sports Awards Deposit for event on the 29th June 2019,03/04/2019,0000446155,366.00,Revenue,Hallmark Hotel Preston Leyland,00090117
South Ribble Council,http://statistics.data.gov.uk/doc/local-authority/30UN,Shared Assurance Services,Agency Fees,1121,"NAME REDACTED - Audit & Risk Manager for week ending period 15-10-2018 - 29-04-2018 37 hours - 1,532.90 x 24 weeks",05/04/2019,0000446042,"1,697.81",Revenue,Hays Specialist Recruitment Ltd,132288
South Ribble Council,http://statistics.data.gov.uk/doc/local-authority/30UN,Shared Assurance Services,Agency Fees,1121,"NAME REDACTED - Audit & Risk Manager for week ending period 15-10-2018 - 29-04-2018 37 hours - 1,532.90 x 24 weeks",12/04/2019,0000446181,"1,540.36",Revenue,Hays Specialist Recruitment Ltd,132288
South Ribble Council,http://statistics.data.gov.uk/doc/local-authority/30UN,Shared Assurance Services,Agency Fees,1121,"NAME REDACTED - Audit & Risk Manager for week ending period 15-10-2018 - 29-04-2018 37 hours - 1,532.90 x 24 weeks",12/04/2019,0000446258,"1,705.67",Revenue,Hays Specialist Recruitment Ltd,132288
South Ribble Council,http://statistics.data.gov.uk/doc/local-authority/30UN,Shared Assurance Services,Agency Fees,1121,"NAME REDACTED - Audit & Risk Manager for week ending period 15-10-2018 - 29-04-2018 37 hours - 1,532.90 x 24 weeks",12/04/2019,0000446410,"1,439.69",Revenue,Hays Specialist Recruitment Ltd,132288
South Ribble Council,http://statistics.data.gov.uk/doc/local-authority/30UN,Information Services,Publications,4142,Municipal Journal Annual Subscription Renewal - 2 copies,17/04/2019,0000446514,280.00,Revenue,HEMMING GROUP LTD,00023867
South Ribble Council,http://statistics.data.gov.uk/doc/local-authority/30UN,Environmental Health,Licence Fees,488B,apr19-jun19,24/04/2019,0000446354,"1,000.00",Revenue,HIGHER WALTON COMMUNITY CENTRE,00070535
South Ribble Council,http://statistics.data.gov.uk/doc/local-authority/30UN,Shared Financial Services,Balance Sheet,0140,,24/04/2019,0000446553,"1,255.98",Revenue,HM REVENUE & CUSTOMS,00024837
South Ribble Council,http://statistics.data.gov.uk/doc/local-authority/30UN,Area 3 - Parks/Leyland East West,Capital Expenditure,C230,"Carpeting to Main Office, Room, New Meeting Room, CCTV Control Room and New Reception",12/04/2019,0000446066,"5,294.00",Revenue,HYDE FLOORING CO LTD,00023605
South Ribble Council,http://statistics.data.gov.uk/doc/local-authority/30UN,Area 3 - Parks/Leyland East West,Capital Expenditure,C230,To carry out work outside normal hours,12/04/2019,0000446066,"1,008.00",Revenue,HYDE FLOORING CO LTD,00023605
South Ribble Council,http://statistics.data.gov.uk/doc/local-authority/30UN,Housing,Cap Grant- Improve Grants,C570,WORKS TO BATHROOM AT ADDRESS REDACTED. ONWARD PROPERTY- 50% HA AND 50% SRBC- TOTAL 2400 ,05/04/2019,0000446173,"1,200.00",Revenue,Hyndburn Homes Repairs,132729
South Ribble Council,http://statistics.data.gov.uk/doc/local-authority/30UN,Homelessness,Contributions,4730,"MB 1 month rent in advance 400.00 and one off administration fee 375.00 ADDRESS REDACTED 6 month AST wef 29.3.2019",12/04/2019,0000446334,775.00,Revenue,I & S Estate Agents Limited,132809
South Ribble Council,http://statistics.data.gov.uk/doc/local-authority/30UN,Area 3 - Parks/Leyland East West,Grounds Maint Cntrctrs Chgs,4657,1x 1200mm high prosafe gate in yellow 1021 including carriage,03/04/2019,0000446184,733.36,Revenue,IAE,131860
South Ribble Council,http://statistics.data.gov.uk/doc/local-authority/30UN,Democratic Services,Other Misc,4422,PROVISION OF 2 X Fi7160 SCANNERS,03/04/2019,0000446123,"1,212.36",Revenue,IDOX PLC,00104485
South Ribble Council,http://statistics.data.gov.uk/doc/local-authority/30UN,HR & Communications,Recruitment Expenses,1500,2 X JOB ADVERTS,24/04/2019,0000446551,400.00,Revenue,Indeed Ireland Operations Ltd,132692
South Ribble Council,http://statistics.data.gov.uk/doc/local-authority/30UN,Neighbourhood Admin & Support,Materials General,4040,QC10 - QUICK SET CONCRETE -,17/04/2019,0000446477,627.20,Revenue,INSTARMAC GROUP PLC,00024905
South Ribble Council,http://statistics.data.gov.uk/doc/local-authority/30UN,Neighbourhood Admin & Support,Materials General,4040,PERMANENT POTHOLE REPAIR - TUB - Special,17/04/2019,0000446477,294.60,Revenue,INSTARMAC GROUP PLC,00024905
South Ribble Council,http://statistics.data.gov.uk/doc/local-authority/30UN,Area 3 - Parks/Leyland East West,Grounds Maint Cntrctrs Chgs,4657,"Timber as per attached list to be delivered to Worden Park, Leyland",12/04/2019,0000446271,"1,503.14",Revenue,JOHN HY MAYOR & SONS LTD,00028176
South Ribble Council,http://statistics.data.gov.uk/doc/local-authority/30UN,Homelessness,Contributions,4730,Bond and rent in advance TLM,24/04/2019,0000446530,"1,500.00",Revenue,JONES CAMERON LETTINGS LTD,130559
South Ribble Council,http://statistics.data.gov.uk/doc/local-authority/30UN,Legal,Advertising,4841,2nd week advert po used on first week,05/04/2019,0000445324,972.00,Revenue,JPI Media - JOHNSTON PUBLISHING (NORTH WEST),00011345
South Ribble Council,http://statistics.data.gov.uk/doc/local-authority/30UN,Environmental Health,Advertising,4841,ADVERT 19/3/2019 WITH REGARD TO STATUTORY INCREASE IN HACKNEY CARRIAGE - PRIVATE HIRE FEES/CHARGES,10/04/2019,0000445875,648.00,Revenue,JPI Media - JOHNSTON PUBLISHING (NORTH WEST),00011345
South Ribble Council,http://statistics.data.gov.uk/doc/local-authority/30UN,Planning,Professional Fees,4510,Leyland Test Track Site Leyland LancashireRef 5987/JA Professional Services,26/04/2019,0000446687,"9,747.40",Revenue,NAME REDACTED,131948
South Ribble Council,http://statistics.data.gov.uk/doc/local-authority/30UN,Development Enterprise & Comm Mgnt,Consultancy Fees,4541,"Consultancy - Open Space, Sport and Recreation Assessment for Central Lancashire  84,700 + VAT",24/04/2019,0000446178,"8,470.00",Revenue,KNIGHT KAVANAGH & PAGE LTD,131981
South Ribble Council,http://statistics.data.gov.uk/doc/local-authority/30UN,Area 2 - Waste Transport/Eastern & Central Teams,Waste Disposal Charges,5112,January 2019 - Incineration of Clinical Waste,17/04/2019,0000446459,741.95,Revenue,LANCASHIRE TEACHING FT,00120715
South Ribble Council,http://statistics.data.gov.uk/doc/local-authority/30UN,Area 2 - Waste Transport/Eastern & Central Teams,Waste Disposal Charges,5112,February 2019 - Incineration of Clinical Waste,17/04/2019,0000446468,585.20,Revenue,LANCASHIRE TEACHING FT,00120715
South Ribble Council,http://statistics.data.gov.uk/doc/local-authority/30UN,Legal,Other Local Authorities,4530,LAND CHARGES - JANUARY 2019,03/04/2019,0000445906,"1,003.50",Revenue,LANCS COUNTY COUNCIL,00041645
South Ribble Council,http://statistics.data.gov.uk/doc/local-authority/30UN,Regeneration,Other Misc,4861,installation of feeder pillar at gregson Lane,17/04/2019,0000446223,610.97,Revenue,LANCS COUNTY COUNCIL,00050681
South Ribble Council,http://statistics.data.gov.uk/doc/local-authority/30UN,Regeneration,Capital Expenditure,C230,Electricity connections and installation of feeder pillars for the landmark features (not including Gregson Green),17/04/2019,0000446224,"2,833.95",Revenue,LANCS COUNTY COUNCIL,00050681
South Ribble Council,http://statistics.data.gov.uk/doc/local-authority/30UN,Area 1 - Penwortham Western Parishes,Professional Fees,4516,Back office processing January - March 2019 246 PCN @ 3.45,12/04/2019,0000446411,848.70,Revenue,LANCS COUNTY COUNCIL,00041645
South Ribble Council,http://statistics.data.gov.uk/doc/local-authority/30UN,Area 1 - Penwortham Western Parishes,Professional Fees,4516,TEC Recharges January - March 2019 10 @ 8.00,12/04/2019,0000446411,80.00,Revenue,LANCS COUNTY COUNCIL,00041645
South Ribble Council,http://statistics.data.gov.uk/doc/local-authority/30UN,Housing,Cap Grant- Improve Grants,C570,"DFG WORKS TO SUPPLY/INSTALL STAIRLIFT AT ADDRESS REDACTED AS PER QUOTE, GRANT APPROVED 5562.00",17/04/2019,0000446445,"5,562.00",Revenue,LANCS COUNTY COUNCIL,00041645
South Ribble Council,http://statistics.data.gov.uk/doc/local-authority/30UN,Legal,Other Local Authorities,4530,LAND CHARGES - MARCH 2019,17/04/2019,0000446456,"1,162.50",Revenue,LANCS COUNTY COUNCIL,00041645
South Ribble Council,http://statistics.data.gov.uk/doc/local-authority/30UN,Legal,Other Local Authorities,4530,LAND CHARGES - FEBRUARY 2019,24/04/2019,0000446554,836.00,Revenue,LANCS COUNTY COUNCIL,00041645
South Ribble Council,http://statistics.data.gov.uk/doc/local-authority/30UN,HR & Communications,Other Local Authorities,4531,PAYROLL SERVICES JANUARY - MARCH 2019,26/04/2019,0000446662,"5,623.75",Revenue,LANCS COUNTY COUNCIL,00041645
South Ribble Council,http://statistics.data.gov.uk/doc/local-authority/30UN,HR & Communications,Other Local Authorities,4531,PAYROLL SERVICES OCTOBER - DECEMBER 2018,26/04/2019,0000446667,"5,623.75",Revenue,LANCS COUNTY COUNCIL,00041645
South Ribble Council,http://statistics.data.gov.uk/doc/local-authority/30UN,HR & Communications,Other Local Authorities,4531,PAYROLL SERVICES JULY - SEPTEMBER 2018,26/04/2019,0000446668,"5,623.75",Revenue,LANCS COUNTY COUNCIL,00041645
South Ribble Council,http://statistics.data.gov.uk/doc/local-authority/30UN,HR & Communications,Other Local Authorities,4531,PAYROLL SERVICES APRIL - JUNE 2018,26/04/2019,0000446669,"5,623.75",Revenue,LANCS COUNTY COUNCIL,00041645
South Ribble Council,http://statistics.data.gov.uk/doc/local-authority/30UN,Regeneration,Professional Fees,4510,Leading Friends group at Preston junction,12/04/2019,0000446342,"1,250.00",Revenue,LANCS WILDLIFE TRUST,00027009
South Ribble Council,http://statistics.data.gov.uk/doc/local-authority/30UN,Regeneration,Professional Fees,4510,Leading Friends Group Preston Junction,12/04/2019,0000446378,416.67,Revenue,LANCS WILDLIFE TRUST,00027009
South Ribble Council,http://statistics.data.gov.uk/doc/local-authority/30UN,Regeneration,Professional Fees,4510,Leading Friends Group Preston Junction,12/04/2019,0000446393,"1,250.00",Revenue,LANCS WILDLIFE TRUST,00027009
South Ribble Council,http://statistics.data.gov.uk/doc/local-authority/30UN,Area 3 - Parks/Leyland East West,Grounds Maint Cntrctrs Chgs,4657,Gate Repair at Queensway Playground,26/04/2019,0000446068,100.00,Revenue,Leyland Lane Wrought Iron Gates & Railings,132012
South Ribble Council,http://statistics.data.gov.uk/doc/local-authority/30UN,Area 3 - Parks/Leyland East West,Grounds Maint Cntrctrs Chgs,4657,See Saw Repair at Worden Park,26/04/2019,0000446068,225.00,Revenue,Leyland Lane Wrought Iron Gates & Railings,132012
South Ribble Council,http://statistics.data.gov.uk/doc/local-authority/30UN,Scrutiny,Subs to Statutory Bodies,4720,LGA SUBSCRIPTION FOR 2019-2020 INCLUDING DISCOUNTS,24/04/2019,0000446490,"10,450.00",Revenue,LGA (LOCAL GOVERNMENT ASSOCIATION),00042851
South Ribble Council,http://statistics.data.gov.uk/doc/local-authority/30UN,Area 2 - Waste Transport/Eastern & Central Teams,Materials General,4040,1 hydraulic pump YP11 CFM JFC12201,17/04/2019,0000446291,"1,400.00",Revenue,LIJ Fluid Power Ltd,132748
South Ribble Council,http://statistics.data.gov.uk/doc/local-authority/30UN,Area 2 - Waste Transport/Eastern & Central Teams,Materials General,4040,1 x PTO Unit YP11 CFM JFC12235,17/04/2019,0000446416,"2,125.00",Revenue,LIJ Fluid Power Ltd,132748
South Ribble Council,http://statistics.data.gov.uk/doc/local-authority/30UN,Housing,Cap Expend Other,C750,DFG WORKS TO BATHROOM AT ADDRESS REDACTED AS PER QUOTE SUPPLIED OF 4430.00 GRANT  4430.00,03/04/2019,0000446072,"4,430.00",Revenue,LTL CONSTRUCTION & MAINTENANCE LTD,131406
South Ribble Council,http://statistics.data.gov.uk/doc/local-authority/30UN,Area 3 - Parks/Leyland East West,Operational Furniture & Equip,4010,Clarke Heavy Duty Pallet Truck (2500kg) with Twin Polyurethane Wheels PT540CM,05/04/2019,0000446176,302.00,Revenue,MACHINE MART LTD,00044668
South Ribble Council,http://statistics.data.gov.uk/doc/local-authority/30UN,Housing,Cap Grant- Improve Grants,C570,"DFG WORKS FOR EXTENSION AT ADDRESS REDACTED, GRANT-COST 13228, 16772.00 MAHONEYS",17/04/2019,0000446172,"16,772.00",Revenue,MAHONEY CONTRACTORS LTD,131271
South Ribble Council,http://statistics.data.gov.uk/doc/local-authority/30UN,Housing,Cap Grant- Improve Grants,C570,DFG WORKS FOR LEVEL ACCESS BATHROOM ADDRESS REDACTED. NEW PROGRESS50% OF COST-3680.00 ,03/04/2019,0000446211,"1,840.00",Revenue,MAHONEY CONTRACTORS LTD,131271
South Ribble Council,http://statistics.data.gov.uk/doc/local-authority/30UN,Housing,Cap Grant- Improve Grants,C570,DFG WORKS FOR LEVEL ACCESS BATHROOM AT ADDRESS REDACTED New progress-50%  Grant-50% Cost 2105.00,17/04/2019,0000446452,"2,220.00",Revenue,MAHONEY CONTRACTORS LTD,131271
South Ribble Council,http://statistics.data.gov.uk/doc/local-authority/30UN,Housing,Cap Grant- Improve Grants,C570,DFG WORKS FOR LEVEL ACCESS BATHROOM ADDRESS REDACTED. New Progress50% OF 3548.60 =1774.30 ,17/04/2019,0000446453,"1,774.30",Revenue,MAHONEY CONTRACTORS LTD,131271
South Ribble Council,http://statistics.data.gov.uk/doc/local-authority/30UN,Neighbourhood Admin & Support,Materials General,4040,MOSSFIELD CLOSE  T,05/04/2019,0000446218,94.00,Revenue,Main Street Signs Ltd,131922
South Ribble Council,http://statistics.data.gov.uk/doc/local-authority/30UN,Neighbourhood Admin & Support,Materials General,4040,ST JAMES CLOSE  T,05/04/2019,0000446218,90.00,Revenue,Main Street Signs Ltd,131922
South Ribble Council,http://statistics.data.gov.uk/doc/local-authority/30UN,Neighbourhood Admin & Support,Materials General,4040,STONEBRIDGE CLOSE  T,05/04/2019,0000446218,98.00,Revenue,Main Street Signs Ltd,131922
South Ribble Council,http://statistics.data.gov.uk/doc/local-authority/30UN,Neighbourhood Admin & Support,Materials General,4040,KIDDLINGTON CLOSE  T,05/04/2019,0000446218,49.00,Revenue,Main Street Signs Ltd,131922
South Ribble Council,http://statistics.data.gov.uk/doc/local-authority/30UN,Neighbourhood Admin & Support,Materials General,4040,RIVERWAY CLOSE   T,05/04/2019,0000446218,46.00,Revenue,Main Street Signs Ltd,131922
South Ribble Council,http://statistics.data.gov.uk/doc/local-authority/30UN,Neighbourhood Admin & Support,Materials General,4040,WOODSTOCK CLOSE   T,05/04/2019,0000446218,47.00,Revenue,Main Street Signs Ltd,131922
South Ribble Council,http://statistics.data.gov.uk/doc/local-authority/30UN,Neighbourhood Admin & Support,Materials General,4040,BLENHEIM CLOSE   T,05/04/2019,0000446218,46.00,Revenue,Main Street Signs Ltd,131922
South Ribble Council,http://statistics.data.gov.uk/doc/local-authority/30UN,Neighbourhood Admin & Support,Materials General,4040,MALVERN CLOSE  T,05/04/2019,0000446218,45.00,Revenue,Main Street Signs Ltd,131922
South Ribble Council,http://statistics.data.gov.uk/doc/local-authority/30UN,Neighbourhood Admin & Support,Materials General,4040,NEW PASTURES  T,05/04/2019,0000446218,88.00,Revenue,Main Street Signs Ltd,131922
South Ribble Council,http://statistics.data.gov.uk/doc/local-authority/30UN,Neighbourhood Admin & Support,Materials General,4040,THE CRESCENT,05/04/2019,0000446218,82.00,Revenue,Main Street Signs Ltd,131922
South Ribble Council,http://statistics.data.gov.uk/doc/local-authority/30UN,Neighbourhood Admin & Support,Materials General,4040,BRIDGE ROAD,05/04/2019,0000446218,40.00,Revenue,Main Street Signs Ltd,131922
South Ribble Council,http://statistics.data.gov.uk/doc/local-authority/30UN,Neighbourhood Admin & Support,Materials General,4040,TODD LANE NORTH,05/04/2019,0000446218,43.00,Revenue,Main Street Signs Ltd,131922
South Ribble Council,http://statistics.data.gov.uk/doc/local-authority/30UN,Neighbourhood Admin & Support,Materials General,4040,TODD LANE NORTH,05/04/2019,0000446218,13.00,Revenue,Main Street Signs Ltd,131922
South Ribble Council,http://statistics.data.gov.uk/doc/local-authority/30UN,Neighbourhood Admin & Support,Materials General,4040,TODD LANE SOUTH,05/04/2019,0000446218,43.00,Revenue,Main Street Signs Ltd,131922
South Ribble Council,http://statistics.data.gov.uk/doc/local-authority/30UN,Neighbourhood Admin & Support,Materials General,4040,WATKIN LANE  98 A-H,05/04/2019,0000446218,90.00,Revenue,Main Street Signs Ltd,131922
South Ribble Council,http://statistics.data.gov.uk/doc/local-authority/30UN,Neighbourhood Admin & Support,Materials General,4040,MARTINFIELD ROAD,05/04/2019,0000446218,45.00,Revenue,Main Street Signs Ltd,131922
South Ribble Council,http://statistics.data.gov.uk/doc/local-authority/30UN,Neighbourhood Admin & Support,Materials General,4040,"T  STICKERSPlease could these be sent via post",05/04/2019,0000446218,60.00,Revenue,Main Street Signs Ltd,131922
South Ribble Council,http://statistics.data.gov.uk/doc/local-authority/30UN,Neighbourhood Admin & Support,Materials General,4040,DELIVERY CHARGE - 5 postage added,05/04/2019,0000446218,67.00,Revenue,Main Street Signs Ltd,131922
South Ribble Council,http://statistics.data.gov.uk/doc/local-authority/30UN,Neighbourhood Admin & Support,Materials General,4040,DOWNHAM ROAD,17/04/2019,0000446491,164.00,Revenue,Main Street Signs Ltd,131922
South Ribble Council,http://statistics.data.gov.uk/doc/local-authority/30UN,Neighbourhood Admin & Support,Materials General,4040,CARTMEL ROAD,17/04/2019,0000446491,164.00,Revenue,Main Street Signs Ltd,131922
South Ribble Council,http://statistics.data.gov.uk/doc/local-authority/30UN,Neighbourhood Admin & Support,Materials General,4040,ELSWICK ROAD  T,17/04/2019,0000446491,88.00,Revenue,Main Street Signs Ltd,131922
South Ribble Council,http://statistics.data.gov.uk/doc/local-authority/30UN,Neighbourhood Admin & Support,Materials General,4040,BELMONT ROAD,17/04/2019,0000446491,123.00,Revenue,Main Street Signs Ltd,131922
South Ribble Council,http://statistics.data.gov.uk/doc/local-authority/30UN,Neighbourhood Admin & Support,Materials General,4040,LANGHOLM CLOSE  T,17/04/2019,0000446491,92.00,Revenue,Main Street Signs Ltd,131922
South Ribble Council,http://statistics.data.gov.uk/doc/local-authority/30UN,Neighbourhood Admin & Support,Materials General,4040,carriage,17/04/2019,0000446491,47.50,Revenue,Main Street Signs Ltd,131922
South Ribble Council,http://statistics.data.gov.uk/doc/local-authority/30UN,Development Enterprise & Comm Mgnt,Operational Furniture & Equip,4010,"4 lamp System complete�package price:1665.00+VAT, UV cones=12.46, UV Ping Pong Kit=20.79, UV Dodgeball Kit=79",24/04/2019,0000446017,"1,869.53",Revenue,Mark S G Enterprises Limited,132792
South Ribble Council,http://statistics.data.gov.uk/doc/local-authority/30UN,Neighbourhood Admin & Support,Grounds Maint Cntrctrs Chgs,4657,26 M2 YORK STONE FLAGS,03/04/2019,0000446114,"2,500.00",Revenue,NAME REDACTED,00054768
South Ribble Council,http://statistics.data.gov.uk/doc/local-authority/30UN,Neighbourhood Admin & Support,Grounds Maint Cntrctrs Chgs,4657,1 x JACK CROWN CHIMNEY POT,03/04/2019,0000446114,120.00,Revenue,NAME REDACTED,00054768
South Ribble Council,http://statistics.data.gov.uk/doc/local-authority/30UN,Chief Executive`s Management,Consultancy Fees,4541,MANAGEMENT RECRUITMENT - FOR ALL HIGH LEVEL RECRUITMENT IN JANUARY AND FEBRUARY 2019,12/04/2019,0000445629,"3,525.00",Revenue,MENRVA Limited,132359
South Ribble Council,http://statistics.data.gov.uk/doc/local-authority/30UN,HR & Communications,Recruitment Expenses,1510,po closed at yr-end,12/04/2019,0000445630,"44,280.95",Revenue,MENRVA Limited,132359
South Ribble Council,http://statistics.data.gov.uk/doc/local-authority/30UN,Area 1 - Penwortham Western Parishes,Professional Fees,4521,PROVISION OF STRAY DOG SERVICE TO COVER MARCH 2019,17/04/2019,0000446492,303.28,Revenue,MORNINGSIDE KENNELS,00067755
South Ribble Council,http://statistics.data.gov.uk/doc/local-authority/30UN,Democratic Services,Members Expenses,4629,"CATER FOR 60 PEOPLE - 40 HOTPOT, 20 BUTTER PIES & SIDES ON 4 APRIL 2019 NAME REDACTED TO CONFIRM ",10/04/2019,0000446332,528.00,Revenue,MOSS HOUSE FARM,00121808
South Ribble Council,http://statistics.data.gov.uk/doc/local-authority/30UN,Environmental Health,Licence Fees,488B,mgmt fee 1st qtr,24/04/2019,0000446355,"1,375.00",Revenue,MOSS SIDE COMMUNITY FORUM,00098724
South Ribble Council,http://statistics.data.gov.uk/doc/local-authority/30UN,Area 2 - Waste Transport/Eastern & Central Teams,Other Misc,48EF,To supply and install one Space SDH 370.42 baseless hydraulic 4.2T post lift with telescopic arms,17/04/2019,0000446222,"3,400.00",Revenue,MRB Workshop Services Ltd,132635
South Ribble Council,http://statistics.data.gov.uk/doc/local-authority/30UN,Area 2 - Waste Transport/Eastern & Central Teams,Other Misc,48EF,To supply arms for Majorlift HP J20 2 tonne jacking beam suitable to fit onto Space SQ500.31.MOT7 4 post lift 120.00,17/04/2019,0000446222,120.00,Revenue,MRB Workshop Services Ltd,132635
South Ribble Council,http://statistics.data.gov.uk/doc/local-authority/30UN,Area 2 - Waste Transport/Eastern & Central Teams,Other Misc,48EF,Carriage for the above,17/04/2019,0000446222,15.00,Revenue,MRB Workshop Services Ltd,132635
South Ribble Council,http://statistics.data.gov.uk/doc/local-authority/30UN,Area 2 - Waste Transport/Eastern & Central Teams,Other Misc,48EF,"Supply & install-SPACE 500.31.MOT7 4 post ATL Lift, headlight tester, jacking beam MOT Accessory Package, move 4 post lift",24/04/2019,0000446572,"11,500.00",Revenue,MRB Workshop Services Ltd,132635
South Ribble Council,http://statistics.data.gov.uk/doc/local-authority/30UN,Information Services,Peripherals,4241,"2 Latitude 5590 laptops-720.00 ea, 2 x Latitude 5yr Pro Support-216.00 ea, plus delivery 10.00, as per quote ref. 180798",05/04/2019,0000446095,"1,882.00",Revenue,MYPREMIER LTD,130091
South Ribble Council,http://statistics.data.gov.uk/doc/local-authority/30UN,Area 2 - Waste Transport/Eastern & Central Teams,External Contractors Charges,4570,SERVICE WASH PJ62 UCH JFC12058,03/04/2019,0000446227,65.00,Revenue,NAYLORS TRANSPORT (LEYLAND) ltd,00114828
South Ribble Council,http://statistics.data.gov.uk/doc/local-authority/30UN,Area 2 - Waste Transport/Eastern & Central Teams,External Contractors Charges,4570,SERVICE WASH PJ62 UCM JFC12059,03/04/2019,0000446227,65.00,Revenue,NAYLORS TRANSPORT (LEYLAND) ltd,00114828
South Ribble Council,http://statistics.data.gov.uk/doc/local-authority/30UN,Area 2 - Waste Transport/Eastern & Central Teams,External Contractors Charges,4570,SERVICE WASH YP11 CFM JFC12060,03/04/2019,0000446227,65.00,Revenue,NAYLORS TRANSPORT (LEYLAND) ltd,00114828
South Ribble Council,http://statistics.data.gov.uk/doc/local-authority/30UN,Area 2 - Waste Transport/Eastern & Central Teams,External Contractors Charges,4570,SERVICE WASH PJ62 UCG JFC12061,03/04/2019,0000446227,65.00,Revenue,NAYLORS TRANSPORT (LEYLAND) ltd,00114828
South Ribble Council,http://statistics.data.gov.uk/doc/local-authority/30UN,Area 2 - Waste Transport/Eastern & Central Teams,External Contractors Charges,4570,SERVICE WASH VK09AHJ JFC12062,03/04/2019,0000446227,65.00,Revenue,NAYLORS TRANSPORT (LEYLAND) ltd,00114828
South Ribble Council,http://statistics.data.gov.uk/doc/local-authority/30UN,Area 2 - Waste Transport/Eastern & Central Teams,External Contractors Charges,4570,SERVICE WASH VO65 KPX JFC12063,03/04/2019,0000446227,65.00,Revenue,NAYLORS TRANSPORT (LEYLAND) ltd,00114828
South Ribble Council,http://statistics.data.gov.uk/doc/local-authority/30UN,Area 2 - Waste Transport/Eastern & Central Teams,External Contractors Charges,4570,SERVICE WASH VX18 KLC JFC12064,03/04/2019,0000446227,65.00,Revenue,NAYLORS TRANSPORT (LEYLAND) ltd,00114828
South Ribble Council,http://statistics.data.gov.uk/doc/local-authority/30UN,Area 2 - Waste Transport/Eastern & Central Teams,External Contractors Charges,4570,SERVICE WASH VO65 KRD JFC12065,03/04/2019,0000446227,65.00,Revenue,NAYLORS TRANSPORT (LEYLAND) ltd,00114828
South Ribble Council,http://statistics.data.gov.uk/doc/local-authority/30UN,Area 2 - Waste Transport/Eastern & Central Teams,External Contractors Charges,4570,SERVICE WASH PF18 JOV JFC12066,03/04/2019,0000446227,65.00,Revenue,NAYLORS TRANSPORT (LEYLAND) ltd,00114828
South Ribble Council,http://statistics.data.gov.uk/doc/local-authority/30UN,Development Enterprise & Comm Mgnt,Other Misc,485K,"Website licence/hosting costs for Visit Leyland 2019-20, eCMS Licence:1500,Hosting:390,Total:1890+VAT",24/04/2019,0000446331,"1,890.00",Revenue,NEW MIND INTERNET CONSULTANCY LTD,00083328
South Ribble Council,http://statistics.data.gov.uk/doc/local-authority/30UN,Environmental Health,Operational Furniture & Equip,4010,50 X MDSV-1 - PRIVATE HIRE STICKERS,10/04/2019,0000446115,144.00,Revenue,NEWAUTO LTD T/A MOGO (UK),00081566
South Ribble Council,http://statistics.data.gov.uk/doc/local-authority/30UN,Environmental Health,Operational Furniture & Equip,4010,50 X WP-1 WINDSCREEN POUCHES,10/04/2019,0000446115,74.00,Revenue,NEWAUTO LTD T/A MOGO (UK),00081566
South Ribble Council,http://statistics.data.gov.uk/doc/local-authority/30UN,Environmental Health,Operational Furniture & Equip,4010,6 X BOXES (100 PER BOX) 4TV-CM - 4 TO VIEW COMPOSITE LABLES,10/04/2019,0000446115,288.00,Revenue,NEWAUTO LTD T/A MOGO (UK),00081566
South Ribble Council,http://statistics.data.gov.uk/doc/local-authority/30UN,Environmental Health,Operational Furniture & Equip,4010,300 X IP-2-GLO1 - MOGO INTERNAL PLATE DOUBLE SIDED WITH GLO 1 SIDE - PRIVATE HIRE,10/04/2019,0000446115,"1,734.00",Revenue,NEWAUTO LTD T/A MOGO (UK),00081566
South Ribble Council,http://statistics.data.gov.uk/doc/local-authority/30UN,Environmental Health,Operational Furniture & Equip,4010,300 X IP-2-GLO1 MOGO INTERNAT PLATE DOUBLE SIDED WITH GLO 1 SIDE - HACKNEY CARRIAGE,10/04/2019,0000446115,"1,734.00",Revenue,NEWAUTO LTD T/A MOGO (UK),00081566
South Ribble Council,http://statistics.data.gov.uk/doc/local-authority/30UN,Environmental Health,Operational Furniture & Equip,4010,300 X MOGO LICENCE PLATE SET (PRINTED AND CLEAR) HACKNEY CARRIAGE - SMALL FX4,10/04/2019,0000446115,"1,494.00",Revenue,NEWAUTO LTD T/A MOGO (UK),00081566
South Ribble Council,http://statistics.data.gov.uk/doc/local-authority/30UN,Environmental Health,Operational Furniture & Equip,4010,300 X MOGO LICENCE PLATE SET (PRINTED AND CLEAR) - HACKNEY CARRIAGE REAR,10/04/2019,0000446115,"1,494.00",Revenue,NEWAUTO LTD T/A MOGO (UK),00081566
South Ribble Council,http://statistics.data.gov.uk/doc/local-authority/30UN,Environmental Health,Operational Furniture & Equip,4010,300 X MOGO LICENCE PLATE SET (PRINTED AND CLEAR) - PRIVATE HIRE REAR,10/04/2019,0000446115,"1,494.00",Revenue,NEWAUTO LTD T/A MOGO (UK),00081566
South Ribble Council,http://statistics.data.gov.uk/doc/local-authority/30UN,HR & Communications,Subs to Statutory Bodies,4720,FULL MEMBERSHIP SUBSCRIPTION RENEWAL APRIL 2019 - MARCH 2020,26/04/2019,0000446646,"4,195.05",Revenue,NORTH WEST EMPLOYERS,00029829
South Ribble Council,http://statistics.data.gov.uk/doc/local-authority/30UN,Area 2 - Waste Transport/Eastern & Central Teams,Materials General,4040,1 PROPSHAFT YP11 CFM JFC12201,03/04/2019,0000446138,350.00,Revenue,NORTH WEST PROPSHAFTS,131403
South Ribble Council,http://statistics.data.gov.uk/doc/local-authority/30UN,Development Enterprise & Comm Mgnt,Other Misc,4851,Use of playing field/indoor hall for sports activities. Duration:5 Days Cost: 50.00 pd  Total Cost:  250.00,24/04/2019,0000446324,250.00,Revenue,NORTHBROOK COMMUNITY PRIMARY SCHOOL,131485
South Ribble Council,http://statistics.data.gov.uk/doc/local-authority/30UN,Area 2 - Waste Transport/Eastern & Central Teams,Operational Furniture & Equip,4010,1 x Puller Tool (EBH 18),17/04/2019,0000446110,"1,295.00",Revenue,NORTHERN JACK SPECIALISTS,130364
South Ribble Council,http://statistics.data.gov.uk/doc/local-authority/30UN,Area 1 - Penwortham Western Parishes,Operational Furniture & Equip,4010,Wire brushes for the Swingo (71343),12/04/2019,0000446292,519.94,Revenue,NORTHERN MUNICIPAL SPARES LTD,00117061
South Ribble Council,http://statistics.data.gov.uk/doc/local-authority/30UN,Area 1 - Penwortham Western Parishes,Professional Fees,4514,Deployment of officers March 2019,03/04/2019,0000446228,"1,707.42",Revenue,NSL LTD,00116868
South Ribble Council,http://statistics.data.gov.uk/doc/local-authority/30UN,Area 1 - Penwortham Western Parishes,Other Misc,4855,Cash collection and Ring-go transactions March 2019,03/04/2019,0000446228,341.87,Revenue,NSL LTD,00116868
South Ribble Council,http://statistics.data.gov.uk/doc/local-authority/30UN,Area 1 - Penwortham Western Parishes,Other Misc,4855,Ring-Go convenience charge March 2019,03/04/2019,0000446228,223.67,Revenue,NSL LTD,00116868
South Ribble Council,http://statistics.data.gov.uk/doc/local-authority/30UN,Information Services,Peripherals,4247,KACE Maintenance & Support for period 30/04/19 - 29/03/20,03/04/2019,0000446128,"1,214.62",Revenue,NVIRON LTD,00028781
South Ribble Council,http://statistics.data.gov.uk/doc/local-authority/30UN,Information Services,Capital Expenditure,C234,"Forcepoint NGFW 1101 @ 5,031 + 15 delivery",03/04/2019,0000446153,"5,046.00",Revenue,NVIRON LTD,00028781
South Ribble Council,http://statistics.data.gov.uk/doc/local-authority/30UN,Development Enterprise & Comm Mgnt,Other Misc,485A,"A5 leaflets (1000  double sided, shiny paper-210.00 10,000 single sided-198.00) 3000 Festival tickets A7 size-258.00",17/04/2019,0000446107,258.00,Revenue,O`pen Office Solutions Ltd,131626
South Ribble Council,http://statistics.data.gov.uk/doc/local-authority/30UN,Area 1 - Penwortham Western Parishes,Operational Furniture & Equip,4013,Call out to repair P&D machine at Sumner Street Leyland on 03/04/2019 and 12/4/2019,24/04/2019,0000446579,319.00,Revenue,PARKEON LTD,00082918
South Ribble Council,http://statistics.data.gov.uk/doc/local-authority/30UN,Housing,Cap Expend Other,C750,DFG WORKS TO BATHROOM AT ADDRESS REDACTED PER QUOTE 4539.00 CLIENT COST 2510.21 GRANT 2028.79,17/04/2019,0000446437,852.52,Revenue,Paul Rothwell and Sons,132741
South Ribble Council,http://statistics.data.gov.uk/doc/local-authority/30UN,Housing,Cap Grant- Improve Grants,C570,DFG WORKS TO BATHROOM AT ADDRESS REDACTED PER QUOTE 4539.00 CLIENT COST 2510.21 GRANT 2028.79,17/04/2019,0000446437,"1,176.27",Revenue,Paul Rothwell and Sons,132741
South Ribble Council,http://statistics.data.gov.uk/doc/local-authority/30UN,Area 3 - Parks/Leyland East West,Capital Expenditure,C230,Demolition of 3 No Toilet Blocks as per quotation dated 15.2.19,17/04/2019,0000446279,"8,320.00",Revenue,PDM Industries Ltd t/a Pete Marquis Contractors,132789
South Ribble Council,http://statistics.data.gov.uk/doc/local-authority/30UN,Development Enterprise & Comm Mgnt,Operational Furniture & Equip,4010,"Fender Blender Pro smoothie bike 1,850.00, Generator Wheel 400.00, Additional Blender 0.00, TOTAL GBP 2,700.00",26/04/2019,0000446257,"2,250.00",Revenue,Pedal Power People,132803
South Ribble Council,http://statistics.data.gov.uk/doc/local-authority/30UN,HR & Communications,Training Expense-Course Fees,1408,MARCH 2019,03/04/2019,0000446127,632.00,Revenue,People Asset Management,132492
South Ribble Council,http://statistics.data.gov.uk/doc/local-authority/30UN,HR & Communications,Training Expense-Course Fees,1408,Feb-19,17/04/2019,0000446524,977.00,Revenue,People Asset Management,132492
South Ribble Council,http://statistics.data.gov.uk/doc/local-authority/30UN,HR & Communications,Training Expense-Course Fees,1408,no vat,17/04/2019,0000446524,151.00,Revenue,People Asset Management,132492
South Ribble Council,http://statistics.data.gov.uk/doc/local-authority/30UN,Environmental Health,Professional Fees,4522,gov fee,10/04/2019,0000446106,792.00,Revenue,Personnel Checks,132574
South Ribble Council,http://statistics.data.gov.uk/doc/local-authority/30UN,Environmental Health,Professional Fees,4522,admin fee,10/04/2019,0000446106,239.94,Revenue,Personnel Checks,132574
South Ribble Council,http://statistics.data.gov.uk/doc/local-authority/30UN,Area 1 - Penwortham Western Parishes,Materials General,4040,10x sheets 6mm polycarbonate 3050x 2050 @ 187.47 per sheet,24/04/2019,0000446442,"1,874.70",Revenue,Perspex Distribution Ltd,131635
South Ribble Council,http://statistics.data.gov.uk/doc/local-authority/30UN,Area 1 - Penwortham Western Parishes,Materials General,4040,Carriage,24/04/2019,0000446442,18.50,Revenue,Perspex Distribution Ltd,131635
South Ribble Council,http://statistics.data.gov.uk/doc/local-authority/30UN,Property Services,Operational Furniture & Equip,4012,"2019 / 2020 contract for the provision of sanitary services at Moss Side Depot, Bison Place, Leyland",17/04/2019,0000446301,408.27,Revenue,PHS GROUP PLC,00031309
South Ribble Council,http://statistics.data.gov.uk/doc/local-authority/30UN,Property Services,Operational Furniture & Equip,4012,2019 / 2020 contract for the provision of sanitary services at the Civic Centre,17/04/2019,0000446302,982.31,Revenue,PHS GROUP PLC,00031309
South Ribble Council,http://statistics.data.gov.uk/doc/local-authority/30UN,Housing,Cap Grant- Improve Grants,C570,"DFG WORKS TO BATHROOM AT ADDRESS REDACTED, QUOTE 3093.00,  50% GRANT FUNDED/50% COST 1546.50 ",10/04/2019,0000446379,"1,303.00",Revenue,Positive Plumbing Solutions Ltd,131562
South Ribble Council,http://statistics.data.gov.uk/doc/local-authority/30UN,Information Services,Stationery,4133,"50,000 sheets  Evolution Everyday A4 80gm1000 sheets  Papago  Card Canary A4 160gm",10/04/2019,0000446327,288.97,Revenue,PREMIER PAPER GROUP LTD,00022606
South Ribble Council,http://statistics.data.gov.uk/doc/local-authority/30UN,Regeneration,Other Misc,4851,"To print 6500 Spring newsletters for Western Parishes, A4 4 page, and delivered to SRBC, as per quote 3482",03/04/2019,0000446105,413.36,Revenue,Preston City Council,131913
South Ribble Council,http://statistics.data.gov.uk/doc/local-authority/30UN,Planning,Professional Fees,4510,"2019 Membership of Leeds CIL group for Central LancashireAuthorities (Preston, South Ribble and Chorley Councils)",17/04/2019,0000446540,500.00,Revenue,Preston City Council,131913
South Ribble Council,http://statistics.data.gov.uk/doc/local-authority/30UN,Shared Financial Services,Other Misc,4851,grant funding,26/04/2019,0000446587,"83,333.00",Revenue,PRESTON CITY COUNCIL,00031435
South Ribble Council,http://statistics.data.gov.uk/doc/local-authority/30UN,Area 2 - Waste Transport/Eastern & Central Teams,External Contractors Charges,4570,TR203,24/04/2019,0000446544,394.60,Revenue,PRESTON TYRE SPECIALISTS,00109516
South Ribble Council,http://statistics.data.gov.uk/doc/local-authority/30UN,Democratic Services,Other Misc,4423,"POSTAGE FOR 83,001 X SOUTH RIBBLE EURO POLL CARDS",26/04/2019,0000446647,"24,884.40",Revenue,PRINT IMAGE FACILITIES LLP,130734
South Ribble Council,http://statistics.data.gov.uk/doc/local-authority/30UN,Democratic Services,Other Misc,4423,"WHITE POLL CARDS - (APPROX 67,500) PINK POLL CARDS (APPROX 16,500) ORDER ACKNOWLEDGEMENT REF 5098",26/04/2019,0000446614,"4,897.98",Revenue,PRINT IMAGE NETWORK LTD,00089199
South Ribble Council,http://statistics.data.gov.uk/doc/local-authority/30UN,Democratic Services,Other Misc,4423,DELIVERY,26/04/2019,0000446614,575.00,Revenue,PRINT IMAGE NETWORK LTD,00089199
South Ribble Council,http://statistics.data.gov.uk/doc/local-authority/30UN,Regeneration,Capital Expenditure,C230,to undertake the site feasibility study,03/04/2019,0000446193,"2,595.00",Revenue,Professional Sportsturf Design (NW) Ltd.,131677
South Ribble Council,http://statistics.data.gov.uk/doc/local-authority/30UN,Homelessness,Contractors Charges 5,5313,"Interim void loss7th January 2019 - 31st March 2019",26/04/2019,0000446655,"2,514.46",Revenue,PROGRESS HOUSING GRP ref:DNSOU001,00030135
South Ribble Council,http://statistics.data.gov.uk/doc/local-authority/30UN,Environmental Health,Professional Fees,4510,"Consultancy on the Councils vision for Worden Hall Week 640% 11,961.00 Week 1340% 11,961.00",26/04/2019,0000446499,"21,723.89",Revenue,Purcell Miller Tritton,132602
South Ribble Council,http://statistics.data.gov.uk/doc/local-authority/30UN,Information Services,Postage,4292,Annual service charge  2/4/19 to 1/4/20  and mail underpayment charges 18/2/19 to 20/3/19,03/04/2019,0000446221,"1,446.89",Revenue,Purchase Power,00093923
South Ribble Council,http://statistics.data.gov.uk/doc/local-authority/30UN,Information Services,Postage,4292,non vat items,03/04/2019,0000446221,2.79,Revenue,Purchase Power,00093923
South Ribble Council,http://statistics.data.gov.uk/doc/local-authority/30UN,HR & Communications,Training Expense-Course Fees,1402,Course Event:  Quantified Tree Risk Assessment for NAME REDACTED on 7/8 May 2019,17/04/2019,0000446415,460.00,Revenue,QUANTIFIED TREE RISK ASSESSMENT LTD,00099163
South Ribble Council,http://statistics.data.gov.uk/doc/local-authority/30UN,Area 2 - Waste Transport/Eastern & Central Teams,External Contractors Charges,4570,"Remove ID Units & readers from 3 vehicles, reinstall on 3 others, Reinstall one unit into PO18 HYN 12.4.1 11.30am and 1.30pm",24/04/2019,0000446515,356.00,Revenue,Quartix,131610
South Ribble Council,http://statistics.data.gov.uk/doc/local-authority/30UN,Information Services,Lease Rental Charges,4036,,17/04/2019,0000446512,333.20,Revenue,RICOH (UK) LTD,00082976
South Ribble Council,http://statistics.data.gov.uk/doc/local-authority/30UN,Information Services,Stationery,413A,,17/04/2019,0000446512,232.52,Revenue,RICOH (UK) LTD,00082976
South Ribble Council,http://statistics.data.gov.uk/doc/local-authority/30UN,Area 3 - Parks/Leyland East West,Materials General,4040,"Maxicrop No 2 (10L)+ delivery @ 10.75",12/04/2019,0000446041,290.75,Revenue,RIGBY TAYLOR LTD,00033145
South Ribble Council,http://statistics.data.gov.uk/doc/local-authority/30UN,Area 3 - Parks/Leyland East West,Materials General,4040,Chikara 150g,24/04/2019,0000446526,510.00,Revenue,RIGBY TAYLOR LTD,00033145
South Ribble Council,http://statistics.data.gov.uk/doc/local-authority/30UN,Area 2 - Waste Transport/Eastern & Central Teams,Operational Furniture & Equip,4010,BAG LOOP - B05DL110,05/04/2019,0000446220,270.00,Revenue,ROBERT ACTON PRODUCTS DEVELOPMENTS,00014452
South Ribble Council,http://statistics.data.gov.uk/doc/local-authority/30UN,Area 1 - Penwortham Western Parishes,Operational Furniture & Equip,4010,Bag Hoops (BO5DL110),12/04/2019,0000446300,900.00,Revenue,ROBERT ACTON PRODUCTS DEVELOPMENTS,00014452
South Ribble Council,http://statistics.data.gov.uk/doc/local-authority/30UN,Information Services,Postage,4295,488123002,17/04/2019,0000446511,256.96,Revenue,ROYAL MAIL GROUP PLC,00033543
South Ribble Council,http://statistics.data.gov.uk/doc/local-authority/30UN,Regeneration,Capital Expenditure,C230,Final payment 50% of total + dayrates for Removal of trees at Shruggs Wood,17/04/2019,0000446417,"23,605.00",Revenue,RUSS ASPINALL T/A BEARDWOOD TREE SERVICE,00120443
South Ribble Council,http://statistics.data.gov.uk/doc/local-authority/30UN,Area 3 - Parks/Leyland East West,Capital Expenditure,C230,"1 x 1000 litre ENERGISE ( Hi foaming non caustic Vehicle Wash)1 x 1000 litre Steel Storage Tank (FOC)",26/04/2019,0000446682,911.15,Revenue,Saanro International Ltd,132788
South Ribble Council,http://statistics.data.gov.uk/doc/local-authority/30UN,Area 3 - Parks/Leyland East West,Capital Expenditure,C230,2 x High Pressure Hose - 15mtr @ 75.81,26/04/2019,0000446685,151.62,Revenue,Saanro International Ltd,132788
South Ribble Council,http://statistics.data.gov.uk/doc/local-authority/30UN,Area 3 - Parks/Leyland East West,Capital Expenditure,C230,2 x Retractable Hose Reel @ 299.97,26/04/2019,0000446685,767.10,Revenue,Saanro International Ltd,132788
South Ribble Council,http://statistics.data.gov.uk/doc/local-authority/30UN,Area 3 - Parks/Leyland East West,Capital Expenditure,C230,"2xEHRLE :KS1140 Cold Water Pressure Washer @ 2999.00 2xSwivel Trigger Gun (included) 2xLance & 1505 Jet (included)",26/04/2019,0000446685,"5,998.00",Revenue,Saanro International Ltd,132788
South Ribble Council,http://statistics.data.gov.uk/doc/local-authority/30UN,Property Services,Professional Fees,4510,Charges for professional fees in connection with the property portfolio of South Ribble Borough Council,24/04/2019,0000446296,816.67,Revenue,Sanderson Weatherall LLP,132534
South Ribble Council,http://statistics.data.gov.uk/doc/local-authority/30UN,Property Services,Professional Fees,4510,land reg,24/04/2019,0000446296,3.00,Revenue,Sanderson Weatherall LLP,132534
South Ribble Council,http://statistics.data.gov.uk/doc/local-authority/30UN,Property Services,Energy Costs,2304,21/12/18 to 30/3/19,17/04/2019,0000446521,713.59,Revenue,SCOTTISH HYDRO ELECTRIC,130051
South Ribble Council,http://statistics.data.gov.uk/doc/local-authority/30UN,Property Services,Energy Costs,2307,CCL,17/04/2019,0000446521,54.17,Revenue,SCOTTISH HYDRO ELECTRIC,130051
South Ribble Council,http://statistics.data.gov.uk/doc/local-authority/30UN,Property Services,Energy Costs,2304,,17/04/2019,0000446522,284.76,Revenue,SCOTTISH HYDRO ELECTRIC,130051
South Ribble Council,http://statistics.data.gov.uk/doc/local-authority/30UN,Property Services,Energy Costs,2304,7/3/19 to 2/4/19,24/04/2019,0000446531,"1,143.84",Revenue,SCOTTISH HYDRO ELECTRIC,130051
South Ribble Council,http://statistics.data.gov.uk/doc/local-authority/30UN,Property Services,Energy Costs,2307,CCl,24/04/2019,0000446531,107.48,Revenue,SCOTTISH HYDRO ELECTRIC,130051
South Ribble Council,http://statistics.data.gov.uk/doc/local-authority/30UN,Environmental Health,External Contractors Charges,4570,Clean up of ADDRESS REDACTED - per NAME REDACTED,03/04/2019,0000446089,675.00,Revenue,SMJ CONTRACT CLEANING,130044
South Ribble Council,http://statistics.data.gov.uk/doc/local-authority/30UN,Environmental Health,External Contractors Charges,4570,House clearance done on 22.3.19 - per NAME REDACTED,03/04/2019,0000446090,910.00,Revenue,SMJ CONTRACT CLEANING,130044
South Ribble Council,http://statistics.data.gov.uk/doc/local-authority/30UN,HR & Communications,Payroll Suspense,1731,"Long Service Award NAME REDACTED",05/04/2019,0000446217,250.00,Revenue,Sodexo T/A THE VOUCHER SHOP,130951
South Ribble Council,http://statistics.data.gov.uk/doc/local-authority/30UN,HR & Communications,Payroll Suspense,1731,postage,05/04/2019,0000446217,6.90,Revenue,Sodexo T/A THE VOUCHER SHOP,130951
South Ribble Council,http://statistics.data.gov.uk/doc/local-authority/30UN,Area 2 - Waste Transport/Eastern & Central Teams,Materials General,4040,Countersunk screws x 100 BIN 1114,03/04/2019,0000446179,30.30,Revenue,SPALDINGS,00070849
South Ribble Council,http://statistics.data.gov.uk/doc/local-authority/30UN,Area 2 - Waste Transport/Eastern & Central Teams,Materials General,4040,CYLINDER ADJUSTING NUT X 5 BIN1110 @29.99,03/04/2019,0000446179,149.95,Revenue,SPALDINGS,00070849
South Ribble Council,http://statistics.data.gov.uk/doc/local-authority/30UN,Area 2 - Waste Transport/Eastern & Central Teams,Materials General,4040,SHIM WASHERS X 20 BIN1121 @ 2.49,03/04/2019,0000446179,49.80,Revenue,SPALDINGS,00070849
South Ribble Council,http://statistics.data.gov.uk/doc/local-authority/30UN,Area 2 - Waste Transport/Eastern & Central Teams,Materials General,4040,RING CARRIER X6 BIN1116 @ 16.99,03/04/2019,0000446179,101.94,Revenue,SPALDINGS,00070849
South Ribble Council,http://statistics.data.gov.uk/doc/local-authority/30UN,Area 2 - Waste Transport/Eastern & Central Teams,Materials General,4040,SEAL RING X 6 BIN1116 @ 4.80,03/04/2019,0000446179,28.80,Revenue,SPALDINGS,00070849
South Ribble Council,http://statistics.data.gov.uk/doc/local-authority/30UN,HR & Communications,Training Expense-Course Fees,1402,"Course: X5 Onsite DCPC 28/01/19, 30/01/19, 18/02/19, 19/02/19, 22/02/19 Delegate: NAME REDACTED",17/04/2019,0000445674,"1,190.00",Revenue,SPECIALIST TRAINING & CONSULTANCY SERVICES LTD,131054
South Ribble Council,http://statistics.data.gov.uk/doc/local-authority/30UN,HR & Communications,Training Expense-Course Fees,1402,zero,17/04/2019,0000445674,291.25,Revenue,SPECIALIST TRAINING & CONSULTANCY SERVICES LTD,131054
South Ribble Council,http://statistics.data.gov.uk/doc/local-authority/30UN,Area 2 - Waste Transport/Eastern & Central Teams,External Contractors Charges,4570,6 x 7.5 tonne Cabled Mobile Column Lifts  as per your quotation 1219031401,03/04/2019,0000446191,"18,918.00",Revenue,Stertil UK Limited,132202
South Ribble Council,http://statistics.data.gov.uk/doc/local-authority/30UN,Regeneration,Capital Expenditure,C230,"Improvement works at Carr Wood and Hennel Lane, improvements to main access path and Winery Lane entrance",03/04/2019,0000446102,"2,500.00",Revenue,NAME REDACTED,132346
South Ribble Council,http://statistics.data.gov.uk/doc/local-authority/30UN,Neighbourhood Admin & Support,Materials General,4040,BLACK SACKS `KEEP SOUTH RIBBLE TIDY` in white - 455 x 735 x 865mm M1A1,03/04/2019,0000446136,"1,083.23",Revenue,Stevenage Packaging Ltd,132780
South Ribble Council,http://statistics.data.gov.uk/doc/local-authority/30UN,Development Enterprise & Comm Mgnt,Advertising,4842,"A4 Folders 1 out of SRA2 Flat : 2 pages, PDF for approval 4 Colour, Neutral Sealer, Claro Gloss 300 gsm Die cut Packed flat",12/04/2019,0000445935,"1,220.00",Revenue,STONE CREATE LTD,130896
South Ribble Council,http://statistics.data.gov.uk/doc/local-authority/30UN,Development Enterprise & Comm Mgnt,Advertising,4842,"South Ribble Apprentice Factory A5 flyers double sided 200gsm 1000 Folder inserts A4 4pp 250gsm 500 each of design ",12/04/2019,0000446006,187.50,Revenue,STONE CREATE LTD,130896
South Ribble Council,http://statistics.data.gov.uk/doc/local-authority/30UN,Development Enterprise & Comm Mgnt,Advertising,4842,,12/04/2019,0000446006,682.00,Revenue,STONE CREATE LTD,130896
South Ribble Council,http://statistics.data.gov.uk/doc/local-authority/30UN,Development Enterprise & Comm Mgnt,Advertising,4842,"Civic Centre Conference Developing brand @ 350 Signs & fitting-1290 Website, SEO, hosting, SSL Cert-1925 Total 4390.00",10/04/2019,0000446231,350.00,Revenue,STONE CREATE LTD,130896
South Ribble Council,http://statistics.data.gov.uk/doc/local-authority/30UN,Development Enterprise & Comm Mgnt,Advertising,4842,"Civic Centre Conference Developing brand @ 350 Signs & fitting-1290 Website, SEO, hosting, SSL Cert-1925 Total 4390.00",12/04/2019,0000446255,"2,174.00",Revenue,STONE CREATE LTD,130896
South Ribble Council,http://statistics.data.gov.uk/doc/local-authority/30UN,Development Enterprise & Comm Mgnt,Advertising,4842,"Civic Centre Conference Developing brand @ 350 Signs & fitting-1290 Website, SEO, hosting, SSL Cert-1925 Total 4390.00",10/04/2019,0000446256,"1,866.00",Revenue,STONE CREATE LTD,130896
South Ribble Council,http://statistics.data.gov.uk/doc/local-authority/30UN,Property Services,Rep & Maint Premises,2020,"Civic Centre, Leyland - fix the issues with the moveable walls Please ask for Caretakers on NUMBER REDACTED for access",17/04/2019,0000446394,600.00,Revenue,STYLE MOVEABLE PARTITION SPECIALISTS,00119917
South Ribble Council,http://statistics.data.gov.uk/doc/local-authority/30UN,Area 2 - Waste Transport/Eastern & Central Teams,Materials General,4040,1 X TEL 2387 Sensor VO65 KRD JFC12044,03/04/2019,0000446124,289.16,Revenue,Taylor Enginering & Fabrications Ltd,132560
South Ribble Council,http://statistics.data.gov.uk/doc/local-authority/30UN,Area 2 - Waste Transport/Eastern & Central Teams,Materials General,4040,1 X TEL 2196 Lead VO65 KRD JFC12098,03/04/2019,0000446124,19.87,Revenue,Taylor Enginering & Fabrications Ltd,132560
South Ribble Council,http://statistics.data.gov.uk/doc/local-authority/30UN,Area 2 - Waste Transport/Eastern & Central Teams,Materials General,4040,carriage,03/04/2019,0000446124,8.95,Revenue,Taylor Enginering & Fabrications Ltd,132560
South Ribble Council,http://statistics.data.gov.uk/doc/local-authority/30UN,Information Services,Consultancy Fees,4541,Monthly retainer service to fulfil SRBC`s requirements 2.5 days per month beginning 1st February 2019 for 6 months,03/04/2019,0000446101,"1,500.00",Revenue,TechAlign,132535
South Ribble Council,http://statistics.data.gov.uk/doc/local-authority/30UN,Information Services,Peripherals,4248,"One Year Licence for Browsealoud for Websites for period 16/04/19 - 15/04/20, as per quote",26/04/2019,0000446576,"1,495.00",Revenue,Texthelp,132822
South Ribble Council,http://statistics.data.gov.uk/doc/local-authority/30UN,Area 1 - Penwortham Western Parishes,Operational Furniture & Equip,4010,Ranger Litter Picker LP3035,12/04/2019,0000446413,"1,621.00",Revenue,The Helping Hand Company,132811
South Ribble Council,http://statistics.data.gov.uk/doc/local-authority/30UN,HR & Communications,Recruitment Expenses,1500,ADVERT FOR THE LEISURE CONTRACTS AND PROJECT MANAGER,17/04/2019,0000446427,647.00,Revenue,THE LEISURE MEDIA COMPANY LTD,132801
South Ribble Council,http://statistics.data.gov.uk/doc/local-authority/30UN,Legal,Publications,4142,NAME REDACTED,17/04/2019,0000446385,549.00,Revenue,THOMSON REUTERS,00034979
South Ribble Council,http://statistics.data.gov.uk/doc/local-authority/30UN,Property Services,Operational Furniture & Equip,4010,Please supply and install cabling to the Civic Centre as detailed in your quotation ref TC1944/19,05/04/2019,0000446121,672.00,Revenue,TIS Networks,132417
South Ribble Council,http://statistics.data.gov.uk/doc/local-authority/30UN,Housing,Cap Grant- Improve Grants,C570,Grant payment towards the cost of supply and installation of external wall insulation to ADDRESS REDACTED Grant  4000,24/04/2019,0000446617,"4,000.00",Revenue,Trade Energy,132102
South Ribble Council,http://statistics.data.gov.uk/doc/local-authority/30UN,Information Services,Capital Expenditure,C234,"Moss Side Comms Rooms - install Mitsubishi Electric split system, as per quote",05/04/2019,0000446293,"6,473.00",Revenue,UNIVERSAL COOLING LTD,130914
South Ribble Council,http://statistics.data.gov.uk/doc/local-authority/30UN,Property Services,Operational Furniture & Equip,4012,2019 / 2020 annual contract for the monthly rental of hot drinks machines at the civic centre including environmental charge.,17/04/2019,0000446098,322.09,Revenue,VENDING ENTERPRISES,00101501
South Ribble Council,http://statistics.data.gov.uk/doc/local-authority/30UN,Healthy Communities,Provisions,4311,Stock for coffee machines 26/03/19,03/04/2019,0000446214,403.65,Revenue,VENDING ENTERPRISES,00101501
South Ribble Council,http://statistics.data.gov.uk/doc/local-authority/30UN,Information Services,Peripherals,4269,"Annual PO for ISDN lines, line rentals & call charges 01/04/18 - 31/03/19",03/04/2019,0000446129,750.45,Revenue,VODAFONE RE:CABLE & WIRELESS UK,130810
South Ribble Council,http://statistics.data.gov.uk/doc/local-authority/30UN,Information Services,Processing-Internal,4212,Annual PO for GSi Convergence Framework 01/04/18 - 31/03/19,03/04/2019,0000446195,"2,903.48",Revenue,VODAFONE RE:CABLE & WIRELESS UK,130810
South Ribble Council,http://statistics.data.gov.uk/doc/local-authority/30UN,Information Services,Peripherals,4247,,05/04/2019,0000446229,"1,783.00",Revenue,VODAFONE RE:CABLE & WIRELESS UK,130810
South Ribble Council,http://statistics.data.gov.uk/doc/local-authority/30UN,Revenues Plus,Postage,4291,Revenues post April - June 2019,12/04/2019,0000446398,259.78,Revenue,WHISTL  UK LTD,131310
South Ribble Council,http://statistics.data.gov.uk/doc/local-authority/30UN,Neighbourhood Admin & Support,Capital Expenditure,C230,WORKS TO REPAIR CHIMNEYS & FIRE PLACES OF BREW HOUSE AND UNIT 2 INCLUDING SCAFFOLDING,17/04/2019,0000446438,"4,510.00",Revenue,WJ Structures Ltd,132581
South Ribble Council,http://statistics.data.gov.uk/doc/local-authority/30UN,Neighbourhood Admin & Support,Capital Expenditure,C230,"LEAD FLASHING DETAIL, REPAIR BUTRESS TOP STEP AND REMOVE RENDER PANEL AND REPLACE-OLD HALL WALL.",17/04/2019,0000446439,"1,769.90",Revenue,WJ Structures Ltd,132581
South Ribble Council,http://statistics.data.gov.uk/doc/local-authority/30UN,Property Services,Rep & Maint Premises,2020,Please provide cleaning services according to the specification quote 9197 for unit ADDRESS REDACTED.,24/04/2019,0000446516,324.65,Revenue,WRENNALLS GROUP LTD,131262
South Ribble Council,http://statistics.data.gov.uk/doc/local-authority/30UN,Development Enterprise & Comm Mgnt,Professional Fees,4510,South Ribble Retail Study Update 2018 Professional consultancy services in connection with the above. ,05/04/2019,0000445910,"4,500.00",Revenue,WYG ENVIRONMENT TRANSPORT LIMITED,130177
South Ribble Council,http://statistics.data.gov.uk/doc/local-authority/30UN,Planning,Capital Expenditure,C230,Leyland Town Centre Stategy,24/04/2019,0000446552,"9,300.00",Revenue,WYG ENVIRONMENT TRANSPORT LIMITED,130177
